[Event "Czech Youth U16 Boys 2024"]
[Site "Kouty nad Desnou"]
[Date "2024.03.12"]
[Round "5.9"]
[White "Zelba, Lukas"]
[Black "Rybackova, Lucie"]
[Result "1/2-1/2"]
[ECO "A56"]
[WhiteElo "1979"]
[BlackElo "1983"]
[Annotator "RC"]
[PlyCount "86"]
[EventDate "2024.03.10"]
[EventType "swiss"]
[EventCountry "CZE"]
[SourceTitle "playchess.com"]
[Source "ChessBase"]
[SourceQuality "1"]
[TimeControl "40/5400+30:1800+30"]

1. d4 {[%emt 0:00:15]} Nf6 {[%emt 0:00:07]} 2. c4 {[%emt 0:00:06]} c5 {[%emt 0:00:07]} 3. e3 {[%emt 0:12:35]} g6 {[%emt 0:06:58]} 4. Nf3 {[%emt 0:01:10]} Bg7 {[%emt 0:00:38]} 5. Be2 {[%emt 0:00:55]} O-O {[%emt 0:00:44]} 6. O-O {[%emt 0:00:46]} cxd4 {[%emt 0:01:41]} 7. exd4 {[%emt 0:01:18]} d5 {[%emt 0:00:33]} 8. b3 {[%emt 0:01:26]} b6 {[%emt 0:05:30]} 9. Bb2 {[%emt 0:01:56]} Bb7 {[%emt 0:00:14]} 10. Nbd2 {[%emt 0:03:28]} Nc6 {[%emt 0:06:15]} 11. Rc1 {[%emt 0:03:13]} Rc8 {[%emt 0:04:06]} 12. a3 {[%emt 0:02:46]} e6 {[%emt 0:12:08]} 13. Bd3 {[%emt 0:00:46]} Ne7 {[%emt 0:08:48]} 14. a4 {[%emt 0:13:25]} Nf5 {[%emt 0:07:53]} 15. Re1 {[%emt 0:07:14]} Nd6 {[%emt 0:05:49]} 16. Ba3 {[%emt 0:01:29]} Re8 {[%emt 0:01:23]} 17. c5 {[%emt 0:04:41]} Nde4 {[%emt 0:01:46]} 18. Bb5 {[%emt 0:01:46]} Bc6 {[%emt 0:02:33]} 19. Ba6 {[%emt 0:00:07]} Nxd2 {[%emt 0:04:20]} 20. Nxd2 {[%emt 0:07:16]} Rb8 {[%emt 0:01:49]} 21. cxb6 {[%emt 0:01:30]} Qxb6 {[%emt 0:00:44]} 22. Qe2 {[%emt 0:04:40]} Bh6 {[%emt 0:09:11]} 23. Bc5 {[%emt 0:03:58]} Qc7 {[%emt 0:02:48]} 24. b4 {[%emt 0:01:57]} Qf4 {[%emt 0:03:07]} 25. Nf3 {[%emt 0:00:58]} Bxa4 {[%emt 0:01:54]} 26. Ra1 {[%emt 0:02:11]} Bd7 {[%emt 0:01:05]} 27. Ne5 {[%emt 0:00:34]} Bf8 {[%emt 0:01:21]} 28. g3 {[%emt 0:01:27]} Qg5 {[%emt 0:01:28]} 29. Bd3 {[%emt 0:02:06]} Rb7 {[%emt 0:02:36]} 30. h4 {[%emt 0:05:01]} Qh6 {[%emt 0:00:32]} 31. Ra2 {[%emt 0:03:44]} Ra8 {[%emt 0:01:55]} 32. Rea1 {[%emt 0:00:34]} Qg7 {[%emt 0:02:33]} 33. b5 {[%emt 0:01:18]} Ne4 {[%emt 0:02:15]} 34. Bxe4 {[%emt 0:00:28]} Bxc5 {[%emt 0:00:48]} 35. dxc5 {[%emt 0:03:19]} Qxe5 {[%emt 0:00:19]} 36. c6 {[%emt 0:00:10]} Rc7 {[%emt 0:01:42]} 37. Bd3 {[%emt 0:05:04]} Qxe2 {[%emt 0:00:38]} 38. Bxe2 {[%emt 0:00:29]} Bxc6 {[%emt 0:00:27]} 39. bxc6 {[%emt 0:00:17]} Rxc6 {[%emt 0:00:02]} 40. Rxa7 {[%emt 0:02:41]} Rc1+ {[%emt 0:00:47]} 41. Rxc1 {[%emt 0:30:24]} Rxa7 {[%emt 0:30:02]} 42. Kg2 {[%emt 0:00:00]} Kg7 {[%emt 0:00:00]} 43. f4 {[%emt 0:00:00]} h5 {[%emt 0:00:00]} 1/2-1/2

[Event "Czech Youth U16 Boys 2024"]
[Site "Kouty nad Desnou"]
[Date "2024.03.12"]
[Round "5.10"]
[White "Buchta, Bartolomej"]
[Black "Stein, Michael"]
[Result "0-1"]
[ECO "C08"]
[WhiteElo "1913"]
[BlackElo "1883"]
[Annotator "RC"]
[PlyCount "40"]
[EventDate "2024.03.10"]
[EventType "swiss"]
[EventCountry "CZE"]
[SourceTitle "playchess.com"]
[Source "ChessBase"]
[SourceQuality "1"]
[TimeControl "40/5400+30:1800+30"]

1. e4 {[%emt 0:00:03]} e6 {[%emt 0:00:04]} 2. d4 {[%emt 0:00:06]} d5 {[%emt 0:00:03]} 3. Nd2 {[%emt 0:00:04]} c5 {[%emt 0:00:07]} 4. exd5 {[%emt 0:00:16]} exd5 {[%emt 0:00:05]} 5. Ngf3 {[%emt 0:00:15]} a6 {[%emt 0:00:34]} 6. Bd3 {[%emt 0:01:02]} c4 {[%emt 0:01:56]} 7. Be2 {[%emt 0:00:54]} Nf6 {[%emt 0:00:38]} 8. O-O {[%emt 0:01:11]} Bd6 {[%emt 0:00:55]} 9. c3 {[%emt 0:02:08]} Nc6 {[%emt 0:01:02]} 10. b3 {[%emt 0:00:23]} b5 {[%emt 0:03:13]} 11. a4 {[%emt 0:03:05]} Bf5 {[%emt 0:03:35]} 12. Ba3 {[%emt 0:01:14]} O-O {[%emt 0:02:32]} 13. Ne5 {[%emt 0:03:20]} Bxa3 {[%emt 0:05:36]} 14. Nxc6 {[%emt 0:06:55]} Qd6 {[%emt 0:01:17]} 15. Ne5 {[%emt 0:00:48]} Bb2 {[%emt 0:01:22]} 16. Ra2 {[%emt 0:03:56]} Bxc3 {[%emt 0:01:19]} 17. Ndf3 {[%emt 0:02:42]} Ne4 {[%emt 0:02:58]} 18. Nh4 {[%emt 0:02:43]} Be6 {[%emt 0:03:23]} 19. f3 {[%emt 0:08:12]} cxb3 {[%emt 0:03:51]} 20. Qxb3 {[%emt 0:05:27]} Bxd4+ {[%emt 0:01:01]} 0-1

[Event "Czech Youth U16 Boys 2024"]
[Site "Kouty nad Desnou"]
[Date "2024.03.12"]
[Round "5.11"]
[White "Zezula, Matej"]
[Black "Dvorak, Jan"]
[Result "1/2-1/2"]
[ECO "C07"]
[WhiteElo "1825"]
[BlackElo "2154"]
[Annotator "RC"]
[PlyCount "188"]
[EventDate "2024.03.10"]
[EventType "swiss"]
[EventCountry "CZE"]
[SourceTitle "playchess.com"]
[Source "ChessBase"]
[SourceQuality "1"]
[TimeControl "40/5400+30:1800+30"]

1. e4 {[%emt 0:00:07]} e6 {[%emt 0:00:04]} 2. d4 {[%emt 0:00:09]} d5 {[%emt 0:00:10]} 3. Nd2 {[%emt 0:00:16]} c5 {[%emt 0:00:24]} 4. exd5 {[%emt 0:00:32]} Qxd5 {[%emt 0:01:28]} 5. dxc5 {[%emt 0:03:08]} Bxc5 {[%emt 0:02:16]} 6. Ngf3 {[%emt 0:00:38]} Nf6 {[%emt 0:01:13]} 7. Bc4 {[%emt 0:01:29]} Qh5 {[%emt 0:10:09]} 8. Nb3 {[%emt 0:10:58]} Bb6 {[%emt 0:02:02]} 9. Qe2 {[%emt 0:07:02]} O-O {[%emt 0:02:13]} 10. Bf4 {[%emt 0:13:11]} Nc6 {[%emt 0:08:57]} 11. O-O-O {[%emt 0:02:34]} a5 {[%emt 0:19:53]} 12. a4 {[%emt 0:06:06]} Nd5 {[%emt 0:08:45]} 13. Bd2 {[%emt 0:03:07]} Bd7 {[%emt 0:03:36]} 14. g4 {[%emt 0:11:43]} Qg6 {[%emt 0:02:45]} 15. h4 {[%emt 0:03:12]} Rac8 {[%emt 0:06:01]} 16. h5 {[%emt 0:04:26]} Qxg4 {[%emt 0:11:05]} 17. Rdg1 {[%emt 0:00:39]} Qf5 {[%emt 0:00:41]} 18. Rg5 {[%emt 0:11:19]} Nf4 {[%emt 0:04:20]} 19. Qd1 {[%emt 0:01:02]} Qe4 {[%emt 0:01:23]} 20. Bb5 {[%emt 0:04:25]} Nb4 {[%emt 0:01:33]} 21. Bxb4 {[%emt 0:04:31]} Bxb5 {[%emt 0:01:43]} 22. Rxb5 {[%emt 0:07:16]} Nd3+ {[%emt 0:07:28]} 23. Kb1 {[%emt 0:01:10]} Nxb4 {[%emt 0:00:29]} 24. Rxb6 {[%emt 0:01:34]} Nxc2 {[%emt 0:00:27]} 25. Rh4 {[%emt 0:01:37]} Qf5 {[%emt 0:01:29]} 26. Ka2 {[%emt 0:00:33]} Nb4+ {[%emt 0:00:35]} 27. Rhxb4 {[%emt 0:00:28]} axb4 {[%emt 0:00:06]} 28. Rxb4 {[%emt 0:00:20]} Rfd8 {[%emt 0:00:47]} 29. Rd4 {[%emt 0:00:47]} Rxd4 {[%emt 0:00:44]} 30. Nfxd4 {[%emt 0:00:14]} Qd5 {[%emt 0:00:51]} 31. Qe1 {[%emt 0:00:38]} Rc4 {[%emt 0:00:40]} 32. Qe3 {[%emt 0:00:44]} Rxa4+ {[%emt 0:00:51]} 33. Kb1 {[%emt 0:00:02]} h6 {[%emt 0:01:00]} 34. Qf3 {[%emt 0:00:22]} Rxd4 {[%emt 0:00:16]} 35. Nxd4 {[%emt 0:00:21]} Qxd4 {[%emt 0:00:13]} 36. Qxb7 {[%emt 0:00:10]} Qxf2 {[%emt 0:00:39]} 37. Qc8+ {[%emt 0:01:10]} Kh7 {[%emt 0:00:08]} 38. Qc3 {[%emt 0:00:53]} Qf5+ {[%emt 0:00:48]} 39. Ka2 {[%emt 0:00:20]} e5 {[%emt 0:00:40]} 40. b4 {[%emt 0:00:16]} e4 {[%emt 0:00:20]} 41. Qd4 {[%emt 0:30:42]} Qe6+ {[%emt 0:30:41]} 42. Kb2 {[%emt 0:00:09]} f5 {[%emt 0:01:06]} 43. Kc2 {[%emt 0:00:23]} Qc6+ {[%emt 0:00:00]} 44. Qc5 {[%emt 0:00:00]} Qd7 {[%emt 0:00:00]} 45. Qc3 {[%emt 0:00:00]} f4 {[%emt 0:00:00]} 46. Qc4 {[%emt 0:00:00]} Qf5 {[%emt 0:00:00]} 47. Qc5 {[%emt 0:00:00]} Qh3 {[%emt 0:00:00]} 48. Qd5 {[%emt 0:00:00]} Qg2+ {[%emt 0:00:00]} 49. Kc3 {[%emt 0:00:00]} Qf3+ {[%emt 0:00:00]} 50. Kc2 {[%emt 0:00:00]} Qe2+ {[%emt 0:00:00]} 51. Kc3 {[%emt 0:00:00]} Qe3+ {[%emt 0:00:00]} 52. Kc2 {[%emt 0:00:00]} Qf2+ {[%emt 0:00:00]} 53. Kc3 {[%emt 0:00:00]} Qe1+ {[%emt 0:00:00]} 54. Kb3 {[%emt 0:00:00]} Qb1+ {[%emt 0:00:00]} 55. Kc3 {[%emt 0:00:00]} Qa1+ {[%emt 0:00:28]} 56. Kb3 {[%emt 0:00:00]} Qb1+ {[%emt 0:00:35]} 57. Kc3 {[%emt 0:00:00]} Qe1+ {[%emt 0:02:49]} 58. Kb3 {[%emt 0:00:00]} Qe3+ {[%emt 0:00:15]} 59. Kc2 {[%emt 0:00:00]} f3 {[%emt 0:01:21]} 60. Qf5+ {[%emt 0:00:00]} Kg8 {[%emt 0:00:12]} 61. Qe6+ {[%emt 0:00:00]} Kf8 {[%emt 0:00:43]} 62. Qf5+ {[%emt 0:00:00]} Ke8 {[%emt 0:00:33]} 63. Qe6+ {[%emt 0:00:19]} Kd8 {[%emt 0:00:36]} 64. Qd6+ {[%emt 0:00:46]} Kc8 {[%emt 0:00:22]} 65. Qc6+ {[%emt 0:00:39]} Kb8 {[%emt 0:00:23]} 66. Qd6+ {[%emt 0:02:29]} Kb7 {[%emt 0:01:15]} 67. Qd5+ {[%emt 0:02:59]} Kb6 {[%emt 0:00:44]} 68. Qa5+ {[%emt 0:03:55]} Kc6 {[%emt 0:01:02]} 69. b5+ {[%emt 0:01:53]} Kd7 {[%emt 0:01:15]} 70. b6 {[%emt 0:00:45]} Qd3+ {[%emt 0:00:43]} 71. Kb2 {[%emt 0:00:18]} f2 {[%emt 0:00:57]} 72. Qf5+ {[%emt 0:00:34]} Kc6 {[%emt 0:00:28]} 73. Qxf2 {[%emt 0:00:54]} e3 {[%emt 0:00:44]} 74. Qf3+ {[%emt 0:00:40]} Kxb6 {[%emt 0:00:21]} 75. Qg3 {[%emt 0:00:21]} Qd4+ {[%emt 0:00:24]} 76. Kb1 {[%emt 0:00:28]} Qd3+ {[%emt 0:00:07]} 77. Kc1 {[%emt 0:00:17]} Qd2+ {[%emt 0:00:31]} 78. Kb1 {[%emt 0:00:06]} Qd1+ {[%emt 0:00:42]} 79. Kb2 {[%emt 0:00:09]} e2 {[%emt 0:00:36]} 80. Qe3+ {[%emt 0:00:52]} Kc6 {[%emt 0:00:33]} 81. Qe4+ {[%emt 0:00:16]} Kc5 {[%emt 0:00:27]} 82. Qe5+ {[%emt 0:00:56]} Kc4 {[%emt 0:00:30]} 83. Qc3+ {[%emt 0:00:30]} Kd5 {[%emt 0:00:23]} 84. Qf3+ {[%emt 0:00:19]} Ke5 {[%emt 0:00:46]} 85. Qe3+ {[%emt 0:00:14]} Kf5 {[%emt 0:00:23]} 86. Qf3+ {[%emt 0:00:09]} Kg5 {[%emt 0:00:17]} 87. Qg3+ {[%emt 0:00:19]} Kxh5 {[%emt 0:00:25]} 88. Qh3+ {[%emt 0:00:40]} Kg5 {[%emt 0:00:53]} 89. Qg3+ {[%emt 0:00:10]} Kf6 {[%emt 0:00:22]} 90. Qf4+ {[%emt 0:00:29]} Ke7 {[%emt 0:00:41]} 91. Qe5+ {[%emt 0:00:42]} Kd8 {[%emt 0:00:36]} 92. Qa5+ {[%emt 0:01:23]} Kd7 {[%emt 0:00:25]} 93. Qf5+ {[%emt 0:00:21]} Kc6 {[%emt 0:00:29]} 94. Qc8+ {[%emt 0:00:53]} Kd5 {[%emt 0:00:21]} 1/2-1/2

[Event "Czech Youth U16 Boys 2024"]
[Site "Kouty nad Desnou"]
[Date "2024.03.12"]
[Round "5.12"]
[White "Pressler, Tobias"]
[Black "Tegda, Vojtech"]
[Result "1-0"]
[ECO "C44"]
[WhiteElo "1954"]
[BlackElo "1936"]
[Annotator "RC"]
[PlyCount "51"]
[EventDate "2024.03.10"]
[EventType "swiss"]
[EventCountry "CZE"]
[SourceTitle "playchess.com"]
[Source "ChessBase"]
[SourceQuality "1"]
[TimeControl "40/5400+30:1800+30"]

1. e4 {[%emt 0:00:43]} e5 {[%emt 0:00:24]} 2. Nf3 {[%emt 0:00:11]} Nc6 {[%emt 0:00:28]} 3. d4 {[%emt 0:00:04]} exd4 {[%emt 0:00:19]} 4. Nxd4 {[%emt 0:00:10]} Nf6 {[%emt 0:04:13]} 5. Nxc6 {[%emt 0:05:39]} bxc6 {[%emt 0:00:12]} 6. Bd3 {[%emt 0:00:55]} d6 {[%emt 0:06:54]} 7. O-O {[%emt 0:00:20]} Be7 {[%emt 0:00:07]} 8. b3 {[%emt 0:01:19]} Ng4 {[%emt 0:20:10]} 9. Bb2 {[%emt 0:02:44]} Bf6 {[%emt 0:02:00]} 10. c3 {[%emt 0:02:23]} Be5 {[%emt 0:21:47]} 11. h3 {[%emt 0:01:42]} Qh4 {[%emt 0:02:27]} 12. Nd2 {[%emt 0:03:34]} Bh2+ {[%emt 0:21:28]} 13. Kh1 {[%emt 0:00:08]} Bf4 {[%emt 0:00:21]} 14. Qe2 {[%emt 0:05:41]} Nh2 {[%emt 0:01:16]} 15. Nf3 {[%emt 0:02:35]} Nxf3 {[%emt 0:00:19]} 16. Qxf3 {[%emt 0:00:09]} h5 {[%emt 0:01:09]} 17. e5 {[%emt 0:02:56]} g5 {[%emt 0:07:05]} 18. exd6 {[%emt 0:05:48]} Bg4 {[%emt 0:01:51]} 19. Qxc6+ {[%emt 0:01:41]} Kf8 {[%emt 0:00:19]} 20. Qxa8+ {[%emt 0:00:27]} Kg7 {[%emt 0:00:06]} 21. c4+ {[%emt 0:00:05]} f6 {[%emt 0:00:05]} 22. Bxf6+ {[%emt 0:00:10]} Kxf6 {[%emt 0:00:11]} 23. Qxh8+ {[%emt 0:00:06]} Ke6 {[%emt 0:00:15]} 24. Rfe1+ {[%emt 0:01:04]} Kxd6 {[%emt 0:00:05]} 25. Qd4+ {[%emt 0:00:28]} Kc6 {[%emt 0:00:37]} 26. Be4# {[%emt 0:00:06]} 1-0

[Event "Czech Youth U16 Boys 2024"]
[Site "Kouty nad Desnou"]
[Date "2024.03.13"]
[Round "6.1"]
[White "Jasso, Matej"]
[Black "Juracak, David"]
[Result "1-0"]
[ECO "C63"]
[WhiteElo "2060"]
[BlackElo "1944"]
[Annotator "RC"]
[PlyCount "65"]
[EventDate "2024.03.10"]
[EventType "swiss"]
[EventCountry "CZE"]
[SourceTitle "playchess.com"]
[Source "ChessBase"]
[SourceQuality "1"]
[TimeControl "40/5400+30:1800+30"]

1. e4 {[%emt 0:00:22]} e5 {[%emt 0:00:26]} 2. Nf3 {[%emt 0:00:08]} Nc6 {[%emt 0:00:25]} 3. Bb5 {[%emt 0:00:19]} f5 {[%emt 0:01:37]} 4. d3 {[%emt 0:00:40]} fxe4 {[%emt 0:01:02]} 5. dxe4 {[%emt 0:00:36]} Nf6 {[%emt 0:00:31]} 6. O-O {[%emt 0:00:39]} Bc5 {[%emt 0:05:36]} 7. Nc3 {[%emt 0:02:50]} O-O {[%emt 0:01:29]} 8. Bg5 {[%emt 0:01:02]} d6 {[%emt 0:00:53]} 9. Nd5 {[%emt 0:07:13]} Be6 {[%emt 0:01:09]} 10. Bc4 {[%emt 0:07:03]} Qd7 {[%emt 0:03:24]} 11. Bxf6 {[%emt 0:02:35]} gxf6 {[%emt 0:00:04]} 12. Nh4 {[%emt 0:01:33]} Na5 {[%emt 0:10:06]} 13. Bd3 {[%emt 0:02:12]} Nc6 {[%emt 0:21:42]} 14. Bc4 {[%emt 0:12:52]} Na5 {[%emt 0:08:12]} 15. Ne7+ {[%emt 0:08:03]} Qxe7 {[%emt 0:17:51]} 16. Nf5 {[%emt 0:00:53]} Qd7 {[%emt 0:11:27]} 17. Qg4+ {[%emt 0:02:59]} Kf7 {[%emt 0:00:05]} 18. Qh5+ {[%emt 0:02:09]} Kg8 {[%emt 0:00:19]} 19. Bxe6+ {[%emt 0:01:52]} Qxe6 {[%emt 0:00:05]} 20. Qg4+ {[%emt 0:00:05]} Kf7 {[%emt 0:00:03]} 21. Qg7+ {[%emt 0:00:07]} Ke8 {[%emt 0:00:04]} 22. Qxc7 {[%emt 0:00:22]} Rg8 {[%emt 0:00:52]} 23. Qxa5 {[%emt 0:00:59]} a6 {[%emt 0:04:42]} 24. Rad1 {[%emt 0:02:03]} Rc8 {[%emt 0:00:25]} 25. Qd2 {[%emt 0:09:17]} Rc6 {[%emt 0:05:10]} 26. c3 {[%emt 0:04:32]} Qc4 {[%emt 0:00:40]} 27. Rfe1 {[%emt 0:03:17]} a5 {[%emt 0:00:48]} 28. b3 {[%emt 0:01:27]} Qf7 {[%emt 0:00:38]} 29. b4 {[%emt 0:04:07]} axb4 {[%emt 0:00:22]} 30. cxb4 {[%emt 0:00:07]} Bd4 {[%emt 0:00:12]} 31. b5 {[%emt 0:00:37]} Rb6 {[%emt 0:02:32]} 32. Nxd4 {[%emt 0:02:16]} exd4 {[%emt 0:00:21]} 33. Qxd4 {[%emt 0:00:07]} 1-0

[Event "Czech Youth U16 Boys 2024"]
[Site "Kouty nad Desnou"]
[Date "2024.03.13"]
[Round "6.2"]
[White "Juhanak, Daniel"]
[Black "Hladky, Tadeas"]
[Result "0-1"]
[ECO "D15"]
[WhiteElo "2005"]
[BlackElo "2056"]
[Annotator "RC"]
[PlyCount "134"]
[EventDate "2024.03.10"]
[EventType "swiss"]
[EventCountry "CZE"]
[SourceTitle "playchess.com"]
[Source "ChessBase"]
[SourceQuality "1"]
[TimeControl "40/5400+30:1800+30"]

1. d4 {[%emt 0:00:06]} d5 {[%emt 0:00:08]} 2. c4 {[%emt 0:00:14]} c6 {[%emt 0:00:08]} 3. Nf3 {[%emt 0:00:13]} Nf6 {[%emt 0:00:16]} 4. Nc3 {[%emt 0:00:09]} a6 {[%emt 0:00:07]} 5. g3 {[%emt 0:00:12]} dxc4 {[%emt 0:02:57]} 6. Bg2 {[%emt 0:00:19]} b5 {[%emt 0:05:15]} 7. O-O {[%emt 0:00:39]} Bb7 {[%emt 0:01:30]} 8. e4 {[%emt 0:07:33]} e6 {[%emt 0:04:34]} 9. e5 {[%emt 0:04:51]} Nd5 {[%emt 0:12:08]} 10. Ne4 {[%emt 0:01:19]} h6 {[%emt 0:00:19]} 11. b3 {[%emt 0:18:57]} c3 {[%emt 0:16:50]} 12. Ne1 {[%emt 0:04:15]} Nd7 {[%emt 0:02:51]} 13. Nd3 {[%emt 0:04:05]} Qb6 {[%emt 0:01:29]} 14. Qg4 {[%emt 0:04:17]} b4 {[%emt 0:13:51]} 15. a3 {[%emt 0:08:25]} a5 {[%emt 0:05:47]} 16. axb4 {[%emt 0:02:06]} axb4 {[%emt 0:00:32]} 17. Rxa8+ {[%emt 0:01:18]} Bxa8 18. Nd6+ {[%emt 0:16:25]} Bxd6 {[%emt 0:00:30]} 19. Qxg7 {[%emt 0:05:42]} Bf8 {[%emt 0:00:06]} 20. Qxh8 {[%emt 0:00:34]} Qxd4 {[%emt 0:00:15]} 21. Qh7 {[%emt 0:03:27]} Nxe5 {[%emt 0:00:15]} 22. Nxe5 {[%emt 0:00:56]} Qxe5 {[%emt 0:00:05]} 23. Bxh6 {[%emt 0:01:44]} Qh5 {[%emt 0:01:07]} 24. Ra1 {[%emt 0:06:58]} Bb7 {[%emt 0:00:51]} 25. Bxd5 {[%emt 0:01:03]} cxd5 {[%emt 0:14:03]} 26. Qd3 {[%emt 0:00:40]} d4 {[%emt 0:01:09]} 27. Bf4 {[%emt 0:03:48]} Qd5 {[%emt 0:00:09]} 28. f3 {[%emt 0:01:34]} Qxf3 {[%emt 0:00:28]} 29. Qxf3 {[%emt 0:02:13]} Bxf3 {[%emt 0:00:03]} 30. Kf2 {[%emt 0:00:45]} Be4 {[%emt 0:01:32]} 31. h4 {[%emt 0:00:34]} f6 {[%emt 0:05:12]} 32. Ra6 {[%emt 0:00:30]} Kf7 {[%emt 0:00:40]} 33. h5 {[%emt 0:00:10]} e5 {[%emt 0:00:28]} 34. Bc1 {[%emt 0:00:42]} Bh7 {[%emt 0:02:26]} 35. Ra7+ {[%emt 0:00:18]} Kg8 {[%emt 0:00:06]} 36. Rd7 {[%emt 0:00:25]} d3 {[%emt 0:00:23]} 37. Rd8 {[%emt 0:00:53]} Kf7 {[%emt 0:02:39]} 38. Rd7+ {[%emt 0:00:24]} Kg8 {[%emt 0:03:43]} 39. Rd8 {[%emt 0:00:33]} d2 {[%emt 0:00:49]} 40. Bxd2 {[%emt 0:00:13]} cxd2 {[%emt 0:00:06]} 41. Rxd2 {[%emt 0:01:13]} Bc5+ {[%emt 0:00:20]} 42. Kf3 {[%emt 0:03:12]} Bd4 {[%emt 0:01:27]} 43. g4 {[%emt 0:03:59]} Kg7 {[%emt 0:01:02]} 44. Ra2 {[%emt 0:04:28]} Bg8 {[%emt 0:03:47]} 45. Ra4 {[%emt 0:00:32]} Bd5+ {[%emt 0:00:22]} 46. Kg3 {[%emt 0:01:07]} Bc3 {[%emt 0:00:09]} 47. Ra7+ {[%emt 0:02:02]} Kh6 {[%emt 0:00:17]} 48. Ra6 {[%emt 0:01:02]} Kg5 {[%emt 0:11:15]} 49. Ra7 {[%emt 0:01:49]} e4 {[%emt 0:10:23]} 50. Ra5 {[%emt 0:06:47]} Be5+ {[%emt 0:00:06]} 51. Kf2 {[%emt 0:00:41]} Be6 {[%emt 0:01:39]} 52. Ke3 {[%emt 0:02:03]} Bxb3 {[%emt 0:03:13]} 53. Rb5 {[%emt 0:01:18]} Bc2 {[%emt 0:00:16]} 54. Rxb4 {[%emt 0:00:29]} Kxg4 {[%emt 0:01:15]} 55. h6 {[%emt 0:00:53]} Bf4+ {[%emt 0:00:05]} 56. Kf2 {[%emt 0:00:06]} Bxh6 {[%emt 0:00:12]} 57. Rb6 {[%emt 0:00:16]} Bg5 {[%emt 0:00:15]} 58. Rb4 {[%emt 0:00:29]} Bd3 {[%emt 0:00:16]} 59. Kg2 {[%emt 0:00:19]} f5 {[%emt 0:00:52]} 60. Kf2 {[%emt 0:00:29]} Bh4+ {[%emt 0:00:34]} 61. Kg2 {[%emt 0:00:12]} f4 {[%emt 0:00:45]} 62. Kh2 {[%emt 0:00:29]} f3 {[%emt 0:00:27]} 63. Rd4 {[%emt 0:00:34]} f2 {[%emt 0:00:39]} 64. Rxe4+ {[%emt 0:00:08]} Kg5 {[%emt 0:01:35]} 65. Rd4 {[%emt 0:00:34]} f1=Q {[%emt 0:03:09]} 66. Rg4+ {[%emt 0:02:19]} Kf5 {[%emt 0:00:11]} 67. Rg5+ {[%emt 0:00:17]} Bxg5 {[%emt 0:00:07]} 0-1

[Event "Czech Youth U16 Boys 2024"]
[Site "Kouty nad Desnou"]
[Date "2024.03.13"]
[Round "6.3"]
[White "Prazak, Daniel"]
[Black "Fizer, Marek"]
[Result "1-0"]
[ECO "B51"]
[WhiteElo "2223"]
[BlackElo "2058"]
[Annotator "RC"]
[PlyCount "119"]
[EventDate "2024.03.10"]
[EventType "swiss"]
[EventCountry "CZE"]
[SourceTitle "playchess.com"]
[Source "ChessBase"]
[SourceQuality "1"]
[TimeControl "40/5400+30:1800+30"]

1. e4 {[%emt 0:00:03]} c5 {[%emt 0:00:10]} 2. Nf3 {[%emt 0:00:19]} d6 {[%emt 0:00:18]} 3. Bb5+ {[%emt 0:00:39]} Nd7 {[%emt 0:00:29]} 4. d4 {[%emt 0:01:18]} cxd4 {[%emt 0:00:36]} 5. Qxd4 {[%emt 0:00:08]} a6 {[%emt 0:01:19]} 6. Bxd7+ {[%emt 0:00:31]} Bxd7 {[%emt 0:01:03]} 7. Nc3 {[%emt 0:01:37]} Nf6 {[%emt 0:03:57]} 8. Bg5 {[%emt 0:03:28]} Bc6 {[%emt 0:08:46]} 9. O-O-O {[%emt 0:07:01]} Qa5 {[%emt 0:04:57]} 10. Rhe1 {[%emt 0:03:11]} e6 {[%emt 0:24:34]} 11. Nd5 {[%emt 0:11:23]} Nxd5 {[%emt 0:09:25]} 12. exd5 {[%emt 0:00:10]} Bd7 {[%emt 0:00:54]} 13. Kb1 {[%emt 0:32:44]} Rc8 {[%emt 0:05:54]} 14. Bf4 {[%emt 0:08:41]} Qc5 {[%emt 0:23:16]} 15. dxe6 {[%emt 0:01:07]} Bxe6 {[%emt 0:01:01]} 16. Qa4+ {[%emt 0:07:03]} b5 {[%emt 0:06:23]} 17. Qxa6 {[%emt 0:02:27]} Be7 {[%emt 0:00:34]} 18. Nd4 {[%emt 0:03:55]} O-O {[%emt 0:03:00]} 19. Qxb5 {[%emt 0:01:25]} Qc7 {[%emt 0:00:52]} 20. Qe2 {[%emt 0:05:35]} Bf6 {[%emt 0:02:18]} 21. Nxe6 {[%emt 0:00:35]} fxe6 {[%emt 0:00:26]} 22. Bc1 {[%emt 0:00:30]} Rfe8 {[%emt 0:00:31]} 23. Rd3 {[%emt 0:00:41]} Ra8 {[%emt 0:00:33]} 24. Rb3 {[%emt 0:00:57]} d5 {[%emt 0:00:34]} 25. g3 {[%emt 0:00:32]} Ra4 {[%emt 0:00:31]} 26. Qb5 {[%emt 0:00:59]} Rc8 {[%emt 0:00:29]} 27. c3 {[%emt 0:01:10]} Qa7 {[%emt 0:00:37]} 28. Rxe6 {[%emt 0:02:51]} Rxa2 {[%emt 0:00:16]} 29. Re8+ {[%emt 0:01:14]} Kf7 {[%emt 0:00:04]} 30. Qb7+ {[%emt 0:02:05]} Rc7 {[%emt 0:00:53]} 31. Qxa7 {[%emt 0:00:28]} Rcxa7 {[%emt 0:00:02]} 32. Re2 {[%emt 0:00:42]} Ra1+ {[%emt 0:00:54]} 33. Kc2 {[%emt 0:00:03]} d4 {[%emt 0:00:25]} 34. Bd2 {[%emt 0:00:34]} Rd7 {[%emt 0:00:50]} 35. cxd4 {[%emt 0:00:21]} Bxd4 {[%emt 0:00:28]} 36. Rf3+ {[%emt 0:00:32]} Bf6 {[%emt 0:00:30]} 37. Bc3 {[%emt 0:00:06]} Kg6 {[%emt 0:00:35]} 38. Bxf6 {[%emt 0:00:38]} gxf6 {[%emt 0:00:02]} 39. Rd3 {[%emt 0:00:49]} Rc7+ {[%emt 0:00:23]} 40. Rc3 {[%emt 0:00:04]} Rd7 {[%emt 0:00:31]} 41. Rd2 {[%emt 0:30:36]} Re7 {[%emt 0:09:57]} 42. h4 {[%emt 0:00:00]} Re4 {[%emt 0:04:02]} 43. Rc5 {[%emt 0:00:00]} Ra6 {[%emt 0:04:42]} 44. Kc3 {[%emt 0:00:00]} f5 {[%emt 0:01:20]} 45. Rc4 {[%emt 0:00:00]} Re1 {[%emt 0:01:30]} 46. b3 {[%emt 0:00:00]} Kf6 {[%emt 0:02:47]} 47. Rd5 {[%emt 0:00:00]} Rc1+ {[%emt 0:01:35]} 48. Kb4 {[%emt 0:00:00]} Rb1 {[%emt 0:00:45]} 49. Rc3 {[%emt 0:00:00]} Ke6 {[%emt 0:01:56]} 50. Rdc5 {[%emt 0:00:00]} f4 {[%emt 0:01:22]} 51. Rc6+ {[%emt 0:00:00]} Rxc6 {[%emt 0:00:33]} 52. Rxc6+ {[%emt 0:00:00]} Kd5 {[%emt 0:01:07]} 53. Rc5+ {[%emt 0:00:00]} Ke6 {[%emt 0:00:38]} 54. Rc4 {[%emt 0:00:00]} fxg3 {[%emt 0:00:38]} 55. fxg3 {[%emt 0:00:00]} h5 {[%emt 0:01:01]} 56. Rc5 {[%emt 0:00:00]} Rg1 {[%emt 0:00:05]} 57. Rg5 {[%emt 0:00:00]} Kd6 {[%emt 0:01:07]} 58. Kb5 {[%emt 0:00:00]} Kc7 {[%emt 0:01:01]} 59. b4 {[%emt 0:00:00]} Kb7 {[%emt 0:02:40]} 60. Rg7+ {[%emt 0:00:00]} 1-0